Cogmind - Beta 13 @@@ ROGUE MODE // 2024.06.14 @ 22:40:22 // Winter2019/RPGLIKE Player: admiral_len Result: Self-destructed Performance ------------- Evolutions (4) 2000 Regions Visited (5) 1000 Robots Destroyed (53) 265 Value Destroyed (1521) 1521 Prototype IDs (0) 0 Alien Tech Used (0) 0 Bonus (0) 0 TOTAL SCORE: 4786 Bonus ------- None Cogmind --------- Core Integrity 1081/1500 Matter 250/300 Energy 200/200 System Corruption 10% Temperature Cool (0) Movement Core (50) Location -6/Waste Parts ------- > --- POWER (1) -------- (None) > --- PROPULSION (2) --- (None) > --- UTILITY (3) ------ (None) > --- WEAPON (3) ------- (None) > --- INVENTORY (0) ---- (None) Peak State ------------ > --- POWER ------------ Fission Core > --- PROPULSION ------- Light Treads Advanced Treads > --- UTILITY ---------- Cooling System Core Analyzer > --- WEAPON ----------- High-powered Shock Rifle Beam Rifle Beam Rifle > --- INVENTORY -------- (None) [Rating: 24] Favorites ----------- Power Light Nuclear Core Engine Ion Engine Power Core Light Nuclear Core Propulsion Light Treads Treads Light Treads Utility Cooling System Device Cooling System Processor Core Analyzer Protection Light Armor Plating Weapon Medium Laser Energy Gun Medium Laser Build | -11 -10 -10 -8 -6 -6 ------- Run | Yrd Mat Sub Rec Fac Was Slots Evolved 5 | 3 1 . . . 1 Power . | . . . . . . Propulsion 1 | 1 . . . . . Utility 2 | 1 . . . . 1 Weapon 2 | 1 1 . . . . Parts Attached 27 | 5 6 6 5 3 2 Power 3 | 1 1 . . 1 . Engine 1 | 1 . . . . . Core 2 | . 1 . . 1 . Reactor . | . . . . . . Propulsion 4 | 2 . . 2 . . Treads 4 | 2 . . 2 . . Leg . | . . . . . . Wheel . | . . . . . . Hover . | . . . . . . Flight . | . . . . . . Utility 5 | . 3 . 1 1 . Device 2 | . 2 . . . . Storage . | . . . . . . Processor 1 | . . . . 1 . Hackware . | . . . . . . Protection 2 | . 1 . 1 . . Artifact . | . . . . . . Weapon 15 | 2 2 6 2 1 2 Energy Gun 15 | 2 2 6 2 1 2 Energy Cannon . | . . . . . . Ballistic Gun . | . . . . . . Ballistic Cannon . | . . . . . . Launcher . | . . . . . . Special Weapon . | . . . . . . Impact Weapon . | . . . . . . Slashing Weapon . | . . . . . . Piercing Weapon . | . . . . . . Special Melee Weapon . | . . . . . . Unidentified Prototypes . | . . . . . . Parts Lost 5 | . . 1 . . 4 Power 1 | . . . . . 1 Propulsion 1 | . . . . . 1 Utility 2 | . . 1 . . 1 Weapon 1 | . . . . . 1 Highest Loss Streak 4 | . . 1 . . 4 To Critical Strikes . | . . . . . . Average Slot Usage (%) 89 | . 83 91 99 100 66 Engine 1 | . 3 . . . . Core 10 | . 9 12 12 12 8 Treads 25 | . 27 25 25 25 11 Device 11 | . 10 12 12 12 8 Protection 4 | . . 4 11 7 . Energy Gun 34 | . 30 36 36 37 27 Naked Turns 1 | . . . . . 1 Heaviest Build 25 | 9 16 20 21 25 23 Greatest Support 42 | 40 40 40 42 42 42 Greatest Overweight (x) 2 | 1 . . 1 . 2 Average Overweight (x) . | . . . . . . Largest Inventory Capacity . | . . . . . . Average Capacity . | . . . . . . Most Carried . | . . . . . . Average Carried . | . . . . . . Final Capacity . | . . . . . . Final Carried . | . . . . . . Class Distribution -------------------- 42% | Gunner 34% | Mutant 18% | Scavenger-Tank Dominant Class ---------------- Mutant | -10/Materials Gunner | -10/Subcaves Scavenger-Tank | -8/Recycling Gunner | -6/Factory Mutant | -6/Waste Resources | -11 -10 -10 -8 -6 -6 ----------- Run | Yrd Mat Sub Rec Fac Was Matter Collected 415 | 250 60 60 40 5 . Remotely . | . . . . . . Salvage Created 1646 | . 568 435 502 141 . Parts 103 | . 27 44 24 8 . Haulers Intercepted . | . . . . . . Recyclers Shooed 1 | . . . 1 . . Parts Field Recycled . | . . . . . . Retrieved Matter . | . . . . . . Parts Self-Destructed 19 | . . 19 . . . Prevented . | . . . . . . Kills | -11 -10 -10 -8 -6 -6 ------- Run | Yrd Mat Sub Rec Fac Was Combat Hostiles Destroyed 38 | . 14 17 4 3 . Guns 36 | . 13 17 4 2 . AOE 1 | . . . . 1 . Classes Destroyed 11 | . 8 2 1 . . Worker 2 | . 2 . . . . Builder 2 | . 1 . 1 . . Recycler 4 | . 1 . 3 . . Mechanic 1 | . 1 . . . . Operator 1 | . 1 . . . . Turret 2 | . . 2 . . . Watcher 3 | . 3 . . . . Swarmer 8 | . 3 5 . . . Grunt 16 | . 11 2 . 3 . Sentry 4 | . . . 4 . . Subdweller 10 | . . 10 . . . Best Kill Streak 5 | . 3 4 5 3 . Combat Bots Only 4 | . 3 4 2 3 . Max Kills in Single Turn 2 | . 1 2 2 1 . Gunslinging 1 | . . 1 . . . Exploded 1 | . . . . 1 . Melee . | . . . . . . Uniques/NPCs Destroyed . | . . . . . . Combat | -11 -10 -10 -8 -6 -6 -------- Run | Yrd Mat Sub Rec Fac Was Hostile Shots Fired 222 | . 70 120 16 12 4 Missed 75 | . 19 45 5 6 . Damage Taken 2142 | . 616 1010 144 180 192 Core 1707 | . 508 787 96 144 172 Absorbed by Shields . | . . . . . . Redirected to Core 1262 | . 347 628 82 129 76 Ignored by Resistances 47 | . . . 11 12 24 Core Remaining (%) 94 | 100 . . 89 . . Volleys Fired 145 | . 67 50 13 6 9 Largest 3 | . 3 3 3 3 3 Hottest 180 | . 150 180 176 172 172 Shots Fired 354 | . 141 141 31 18 23 Gun 354 | . 141 141 31 18 23 Cannon . | . . . . . . Launcher . | . . . . . . Special . | . . . . . . Kinetic . | . . . . . . Thermal 341 | . 141 141 31 12 16 Explosive . | . . . . . . Electromagnetic 13 | . . . . 6 7 Robot Hit Streak 30 | . 18 20 30 13 10 Robot Miss Streak 3 | . 3 2 1 1 1 Penetration Max . | . . . . . . Secondary Targets 9 | . 3 6 . . . Max Gunslinging Chain 2 | . 1 2 . . . Shots Hit Robots 275 | . 109 108 23 14 21 Core Hits 99 | . 38 35 12 9 5 Critical Kills . | . . . . . . Critical Parts Destroyed 2 | . . 1 1 . . Critical Strikes 22 | . 11 6 1 . 4 Burn 19 | . 11 5 . . 3 Destroy 2 | . . 1 1 . . Corrupt 1 | . . . . . 1 Melee Attacks . | . . . . . . Impact . | . . . . . . Slashing . | . . . . . . Piercing . | . . . . . . Sneak Attacks . | . . . . . . Combat Hostiles . | . . . . . . Follow-up Attacks . | . . . . . . Damage Inflicted 4509 | . 1445 1863 612 344 245 Guns 4197 | . 1424 1863 412 253 245 Cannons . | . . . . . . Explosions 270 | . . . 179 91 . Melee . | . . . . . . Ramming 42 | . 21 . 21 . . Kinetic . | . . . . . . Thermal 4155 | . 1424 1863 412 221 235 Explosive 179 | . . . 179 . . Electromagnetic 133 | . . . . 123 10 Impact . | . . . . . . Slashing . | . . . . . . Piercing . | . . . . . . Highest Corruption 10 | . . . . . 10 Average Corruption 10 | . . . . . 10 Corruption Purged . | . . . . . . Corruption Blocked . | . . . . . . Effects 2 | . . . . . 2 Matter Fused 1 | . . . . . 1 Weapon Failures 1 | . . . . . 1 Overload Shots . | . . . . . . Overflow Damage 4 | . . . 4 . . Projectiles . | . . . . . . Explosions 4 | . . . 4 . . Melee . | . . . . . . Knockbacks 1 | . 1 . . . . Impact 1 | . 1 . . . . Kinetic . | . . . . . . Secondary . | . . . . . . Self-Inflicted Damage . | . . . . . . Shots . | . . . . . . Rammed 12 | . 6 . 6 . . Targets Rammed 12 | . 6 . 6 . . Kicked . | . . . . . . Crushed . | . . . . . . Highest Temperature 384 | . 384 5 27 30 . Average Temperature 83 | . 90 5 8 26 . Received Heat Transfer 744 | . 342 318 45 39 . Effects 2 | . 2 . . . . Shutdowns 1 | . 1 . . . . Interference 1 | . 1 . . . . Siege Activations . | . . . . . . Robots Corrupted . | . . . . . . Combat Hostiles . | . . . . . . Parts Fried . | . . . . . . Impact Corruptions . | . . . . . . Robots Melted 1 | . 1 . . . . Combat Hostiles 1 | . 1 . . . . Parts Melted 24 | . 16 8 . . . Heat Transferred 10571 | . 5032 3659 683 383 814 Parts Sabotaged . | . . . . . . Parts Stolen . | . . . . . . Parts Stripped . | . . . . . . Power Chain Reactions . | . . . . . . Alert | -11 -10 -10 -8 -6 -6 ------- Run | Yrd Mat Sub Rec Fac Was Peak Influence 266 | . 200 . 266 138 . Initial 141 | . . . 141 . . Average 52 | . 36 . 113 5 . Maximum Alert Level 1 | . 1 . 1 . . Low Security (%) 96 | 100 98 . 89 100 100 Level 1 3 | . 1 . 10 . . Level 2 . | . . . . . . Level 3 . | . . . . . . Level 4 . | . . . . . . Level 5 . | . . . . . . High Security . | . . . . . . Max Security . | . . . . . . Squads Dispatched 4 | . 4 . . . . Investigation 2 | . 2 . . . . Extermination . | . . . . . . Reinforcement 2 | . 2 . . . . Assault . | . . . . . . Garrison . | . . . . . . Intercept . | . . . . . . Searches Triggered . | . . . . . . Construction Impeded . | . . . . . . Haulers Reinforced . | . . . . . . Active Scanning Responses . | . . . . . . Cargo Convoy Interrupts . | . . . . . . Stealth | -11 -10 -10 -8 -6 -6 --------- Run | Yrd Mat Sub Rec Fac Was Distress Signals . | . . . . . . Communications Jammed . | . . . . . . Distress Signals . | . . . . . . Times Spotted 65 | . 26 32 3 3 1 Peak Tracking Total 5 | . 3 5 2 3 1 Tactical Retreats 3 | . . 3 . . . Traps | -11 -10 -10 -8 -6 -6 ------- Run | Yrd Mat Sub Rec Fac Was Traps Triggered 3 | . 2 . . 1 . Indirectly . | . . . . . . Trap Hack Attempts . | . . . . . . Triggered . | . . . . . . Disarmed . | . . . . . . Reprogrammed . | . . . . . . Reused . | . . . . . . Traps Extracted . | . . . . . . Installed . | . . . . . . Triggered . | . . . . . . Machines | -11 -10 -10 -8 -6 -6 ---------- Run | Yrd Mat Sub Rec Fac Was Machines Disabled 5 | . . 1 1 3 . Max in Single Turn 3 | . . 1 1 3 . Machines Repaired . | . . . . . . Machines Dismantled . | . . . . . . Machines Sabotaged . | . . . . . . Overloaded Fab Kills . | . . . . . . Hacking | -11 -10 -10 -8 -6 -6 --------- Run | Yrd Mat Sub Rec Fac Was Machines Accessed 2 | . . . 2 . . Terminals 1 | . . . 1 . . Fabricators . | . . . . . . Repair Stations . | . . . . . . Recycling Units 1 | . . . 1 . . Scanalyzers . | . . . . . . Garrison Access . | . . . . . . Total Hacks 2 | . . . 2 . . Successful 2 | . . . 2 . . Failed . | . . . . . . Catastrophic . | . . . . . . Database Lockouts . | . . . . . . Manual . | . . . . . . Terminals 1 | . . . 1 . . Fabricators . | . . . . . . Repair Stations . | . . . . . . Recycling Units 1 | . . . 1 . . Scanalyzers . | . . . . . . Garrison Access . | . . . . . . Terminal Hacks 1 | . . . 1 . . Zone Layout 1 | . . . 1 . . Fabricator Hacks . | . . . . . . Repair Station Hacks . | . . . . . . Recycling Unit Hacks 1 | . . . 1 . . Report Inventory 1 | . . . 1 . . Scanalyzer . | . . . . . . Garrison Access Hacks . | . . . . . . Unauthorized Hacks . | . . . . . . Terminals . | . . . . . . Fabricators . | . . . . . . Repair Stations . | . . . . . . Recycling Units . | . . . . . . Scanalyzers . | . . . . . . Garrison Access . | . . . . . . Data Cores Recovered . | . . . . . . Used . | . . . . . . Hacking Detections . | . . . . . . Full Trace Events . | . . . . . . Feedback Events . | . . . . . . Feedback Blocked . | . . . . . . Robot Schematics Acquired . | . . . . . . Robots Built . | . . . . . . Authchips . | . . . . . . Time . | . . . . . . Total Robot Build Rating . | . . . . . . Part Schematics Acquired . | . . . . . . Parts Built . | . . . . . . Authchips . | . . . . . . Time . | . . . . . . Total Part Build Rating . | . . . . . . Parts Repaired . | . . . . . . Time . | . . . . . . Parts Recycled . | . . . . . . Recycled Matter . | . . . . . . Retrieved Matter . | . . . . . . Retrieved Components . | . . . . . . Parts Scanalyzed . | . . . . . . Part Schematics Acquired . | . . . . . . Parts Damaged . | . . . . . . Bothacking | -11 -10 -10 -8 -6 -6 ------------ Run | Yrd Mat Sub Rec Fac Was Used RIF Installer . | . . . . . . Robots Hacked . | . . . . . . Non-combat . | . . . . . . Combat . | . . . . . . Robot Hacks Applied . | . . . . . . Relay Couplers Released . | . . . . . . Fabnet Peak Effective % . | . . . . . . Robots Rewired . | . . . . . . Allies Hacked . | . . . . . . Hacks Repelled . | . . . . . . Allies | -11 -10 -10 -8 -6 -6 -------- Run | Yrd Mat Sub Rec Fac Was Total Allies . | . . . . . . Largest Group . | . . . . . . Highest-Rated Group . | . . . . . . Highest-Rated Ally . | . . . . . . Total Orders . | . . . . . . Ally Attacks . | . . . . . . Total Damage . | . . . . . . Kills . | . . . . . . Allies Corrupted . | . . . . . . Allies Melted . | . . . . . . Intel | -11 -10 -10 -8 -6 -6 ------- Run | Yrd Mat Sub Rec Fac Was Robot Analysis Total . | . . . . . . Derelict Logs Recovered 1 | . . 1 . . . Drone Launches . | . . . . . . Drone Recoveries . | . . . . . . Exploration | -11 -10 -10 -8 -6 -6 ------------- Run | Yrd Mat Sub Rec Fac Was Turns Passed 5274 | 57 2083 1742 938 412 42 Spaces Moved 2942 | 37 1131 942 571 252 9 Core 13 | 8 . . . . 5 Treads 2929 | 29 1131 942 571 252 4 Legs . | . . . . . . Wheels . | . . . . . . Hover . | . . . . . . Flight . | . . . . . . Fastest Speed 50 | 50 160 160 152 152 50 Average Speed 157 | 137 160 160 153 152 123 Slowest Speed 240 | 160 160 160 240 152 152 Overloaded Moves . | . . . . . . Propulsion Burnouts . | . . . . . . Robots Hopped . | . . . . . . Cave-ins Triggered . | . . . . . . Exploration Rate (%) 43 | 4 97 44 97 8 11 Regions Visited 5 Branch Regions 2 Pre-discovered Areas . | . . . . . . Known Exits Taken . | . . . . . . Unknown Exits Taken 4 | 1 1 1 1 . . Scrap Searched 3 | . . 3 . . . Spaces Dug . | . . . . . . Terrain Destroyed 17 | . . . 10 7 . Melee . | . . . . . . Projectile . | . . . . . . AOE 17 | . . . 10 7 . Terrain Rammed . | . . . . . . Walls Destroyed . | . . . . . . Machines Disabled . | . . . . . . Actions | -11 -10 -10 -8 -6 -6 --------- Run | Yrd Mat Sub Rec Fac Was Total 3265 | 41 1264 1067 604 269 20 Wait 60 | . 25 24 6 5 . Move 2938 | 36 1130 941 570 252 9 Hop . | . . . . . . Pick Up . | . . . . . . Fast Attach 23 | 5 5 5 4 2 2 Attach . | . . . . . . Detach . | . . . . . . Swap 4 | . 1 1 1 1 . Drop 16 | . 3 6 4 3 . Fire 145 | . 67 50 13 6 9 Melee . | . . . . . . Ram . | . . . . . . Kick . | . . . . . . Crush 12 | . 6 . 6 . . Escape Stasis . | . . . . . . Rewire . | . . . . . . Trap . | . . . . . . Miscellaneous 67 | . 27 40 . . . Route ------- -11/Scrapyard -10/Materials (discovered 6 exits: [*Mat x3] / [*Min x2] / [*Sub]) -10/Subcaves (discovered 3 exits: [*Mat x2] / *Rec) -8/Recycling -6/Factory -6/Waste History --------- Turn | Location | Event 1 | -11/Scrapyard | Upgraded with Propulsion slot (x1) 1 | -11/Scrapyard | Upgraded with Utility slot (x1) 1 | -11/Scrapyard | Upgraded with Weapon slot (x1) 20 | -11/Scrapyard | Discovered new exit (range 16) 58 | -11/Scrapyard | Entered Materials 293 | -10/Materials | Discovered new exit (range 16) 306 | -10/Materials | Build established: Mutant 468 | -10/Materials | Discovered new exit (range 9) 709 | -10/Materials | Discovered new exit (range 7) 1454 | -10/Materials | Reached level 2 1488 | -10/Materials | Upgraded with Weapon slot (x1) 1792 | -10/Materials | Discovered new exit (range 16) 1880 | -10/Materials | Build established: Gunner 2034 | -10/Materials | Discovered new exit (range 12) 2130 | -10/Materials | Discovered new exit (range 9) 2141 | -10/Materials | Entered Subcaves 2186 | -10/Subcaves | Reached level 3 2223 | -10/Subcaves | Shifting Twisted Machinery released Flamer 2249 | -10/Subcaves | Discovered new exit (range 8) 2429 | -10/Subcaves | Discovered new exit (range 13) 2551 | -10/Subcaves | Shifting Twisted Machinery released Sub. Laser 2655 | -10/Subcaves | Discovered new exit (range 16) 2846 | -10/Subcaves | Shifting Twisted Machinery released Flamer 2934 | -10/Subcaves | Shifting Twisted Machinery released Flamer 2952 | -10/Subcaves | Learned 8 Materials zone layouts 3547 | -10/Subcaves | A swath of the cavern ceiling suddenly collapsed 3883 | -10/Subcaves | Entered Recycling 3885 | -8/Recycling | Reached level 4 4522 | -8/Recycling | Build established: Scavenger-Tank 4552 | -8/Recycling | Discovered new exit (range 9) 4821 | -8/Recycling | Entered Factory 4823 | -6/Factory | Reached level 5 5233 | -6/Factory | Sucked down chute 5233 | -6/Factory | Entered Waste 5235 | -6/Waste | Reached level 6 5237 | -6/Waste | Spotted C-40 Crusher 5238 | -6/Waste | Upgraded with Utility slot (x1) 5248 | -6/Waste | EMP discharged 5248 | -6/Waste | System corruption reached 10% 5259 | -6/Waste | Crushed by Compactor (1 part destroyed, 2 dropped) 5262 | -6/Waste | Crushed by Compactor (1 part destroyed, 1 dropped) 5265 | -6/Waste | Crushed by Compactor (1 part destroyed, 1 dropped) 5274 | -6/Waste | Crushed by Compactor (1 part destroyed, 2 dropped) 5275 | -6/Waste | Self-destructed Last Messages --------------- Upgraded: EX Resistance % (+5) C-40 Crusher suffers critical hit (Burn). Prototype Ballistic Gun fried beyond repair. System corrupted (+10). System corrupted: Matter fused (-5). System corrupted: Beam Rifle failed to cycle. C-40 Crusher suffers critical hit (Burn). Adv. Treads crushed. Lgt. Treads crushed. Beam Rifle crushed. Fission Core crushed. Beam Rifle crushed. Acquired Beam Rifle. Cooling System crushed. Hpw. Shock Rifle crushed. Acquired Beam Rifle. Lgt. Treads crushed. C-40 Crusher suffers critical hit (Burn). Beam Rifle crushed. Core Analyzer crushed. Map ----- +----------------------------------------------------+ | ??????????????????????????????????????????? | | ??????????????????????????????????????????? | | ??????????????????????????????????????????? | | ??????????????????????????????????????????? | | ??????????????????????????????????????????? | | ??????????????????????????????????????????? | | ??????????????????????????????????????????? | | ??????????????????????????????????????????? | | ??????????????????????????????????????????? | | ??????????????????????????????????????????? | | ??????????????????????????????????????????? | | ??????????????????????????????????????????? | | ??????????????????????????????????????????? | | ??????????????????????????????????????????? | | ??????????????????????????????????????????? | | ??????????????????????????????????????????? | | ??????????????????????????????????????????? | | ??????????????????????????????????????????? | | ??????????????????????????????????????????? | | ?????????????############?????????????????? | | ?????????????# #???????#?????????? | | ?????????????# #????? #?????????? | | ?????????????# #### #####?????? | | ?????????????# ????? | | ?????????????#[ [ ????? | | ?????????????# @CC ????? | | ?????????????# CC ????? | | ?????????????# #### #####?????? | | ?????????????# #????? #?????????? | | ?????????????# #???????#?????????? | | ?????????????############?????????????????? | | ??????????????????????????????????????????? | | ??????????????????????????????????????????? | | ??????????????????????????????????????????? | | ??????????????????????????????????????????? | | ??????????????????????????????????????????? | | ??????????????????????????????????????????? | | ??????????????????????????????????????????? | | ??????????????????????????????????????????? | | ??????????????????????????????????????????? | | ??????????????????????????????????????????? | | ??????????????????????????????????????????? | | ??????????????????????????????????????????? | | ??????????????????????????????????????????? | | ??????????????????????????????????????????? | | ??????????????????????????????????????????? | | ??????????????????????????????????????????? | | ??????????????????????????????????????????? | | ??????????????????????????????????????????? | | ??????????????????????????????????????????? | +----------------------------------------------------+ Best States ------------- Heat Dissipation 65 Energy Generation 28 Energy Capacity 410 Matter Stores 300 Matter Capacity 300 Sight Range 16 Terrain Scan Density 10 Armor Coverage 150 Resistance: KI 10 Resistance: TH 10 Resistance: EX 10 Evasion (%) 40 Core Analysis 6 Recoil Reduction 2 Item Schematics ----------------- None Robot Schematics ------------------ None Fabricated ------------ Nothing Alien Tech Used ----------------- None Achievements -------------- None Challenges ------------ None RPGLIKE | -11 -10 -10 -8 -6 -6 --------- Run | Yrd Mat Sub Rec Fac Was Levels Raised 5 | . 1 1 1 1 1 XP Earned 10555 | 3000 1855 1950 1475 2075 200 XP Spent 10115 | 3000 1490 1275 1150 1850 1350 Upgrades 40 | 6 12 4 4 11 3 Propulsion Slot 1 | 1 . . . . . Utility Slot 2 | 1 . . . . 1 Weapon Slot 2 | 1 1 . . . . Core Integrity 18 | . 8 . . 10 . Heat Dissipation 3 | . 3 . . . . Energy Generation 2 | . . 2 . . . Energy Storage 2 | . . 2 . . . Ranged Accuracy 4 | 3 . . 1 . . KI Resistance % 2 | . . . 1 1 . TH Resistance % 2 | . . . 1 . 1 EX Resistance % 2 | . . . 1 . 1 Protomatter Created 725 | . 260 320 49 96 . Integrity Restored 1431 | . 585 846 . . . Core 1288 | . 508 780 . . . Parts 143 | . 77 66 . . . Protomatter Decayed 151 | . 63 88 . . . Game ------ Seed SpreadLegRouter Manual? 0 Play Time 00:25:37 Cumulative 19.7 hours Start 2024.06.14 @ 22:15:19 End 2024.06.14 @ 22:40:22 Sessions 1 Manual Loads 0 Difficulty Rogue Special Mode Winter2019/RPGLIKE Game No. 38 Rogue 38 Adventurer 0 Explorer 0 Win Type - Total 0 Types 0/0/0/0/0/0/0/0/0 Lore% 6 Gallery% 17 Achievement% 16 Wizard Run 0 Options --------- Layout 0 ASCII 0 Keyboard 0 Movement Mouse Keybinds 0 Fullscreen 1 Font 18/SmallcapsGlow Map View 38x25 Zoom Use 99% Tactical HUD 0 Map Filters NONE Filters NONE Steam 1 RUN: f7c6c4aa-187c-4ce0-b029-b977617a255b